Cogmind - Beta 16.1 @@@ ROGUE MODE // 2026.02.20 @ 17:24:44 Player: Skergy Result: Destroyed by E1-VYT(R) with Subdweller Machine Gun Performance ------------- Evolutions (0) 0 Regions Visited (2) 400 Robots Destroyed (27) 135 Value Destroyed (548) 548 Prototype IDs (2) 40 Alien Tech Used (0) 0 Bonus (0) 0 TOTAL SCORE: 1123 Bonus ------- None Cogmind --------- Core Integrity 0/250 Matter 238/300 Energy 100/100 System Corruption 0% Temperature Cool (0) Movement Core (400) Ox7 Location -10/Subcaves Parts ------- > --- POWER (1) -------- (None) > --- PROPULSION (2) --- Aluminum Leg > --- UTILITY (2) ------ Large Storage Unit Seismic Detector > --- WEAPON (2) ------- Battle Cannon > --- INVENTORY (15) --- Aluminum Leg Subdweller Monowheel Light Humpback High-capacity Matter Pod (200) High-capacity Matter Pod (199) High-capacity Matter Pod (0) High-capacity Matter Pod (0) Signal Interpreter Improved Terrain Scanner Beam Cannon Light Assault Rifle Mining Laser Peak State ------------ > --- POWER ------------ Subdweller Power Source > --- PROPULSION ------- Light Treads Aluminum Leg > --- UTILITY ---------- Large Storage Unit Seismic Detector > --- WEAPON ----------- Light Cannon Battle Cannon > --- INVENTORY -------- Light Ion Engine Aluminum Leg Subdweller Monowheel Light Humpback High-capacity Matter Pod High-capacity Matter Pod High-capacity Matter Pod High-capacity Matter Pod Signal Interpreter Improved Terrain Scanner Beam Cannon Light Assault Rifle Mining Laser [Rating: 10] Favorites ----------- Power Ion Engine Engine Ion Engine Propulsion Light Treads Treads Light Treads Leg Aluminum Leg Utility Seismic Detector Device Seismic Detector Storage Large Storage Unit Weapon Light Cannon Energy Gun EM Pulse Gun Ballistic Gun Light Assault Rifle Ballistic Cannon Light Cannon Special Weapon Mining Laser Build | -11 -10 -10 ------- Run | Yrd Mat Sub Slots Evolved . | . . . Power . | . . . Propulsion . | . . . Utility . | . . . Weapon . | . . . Parts Attached 18 | 8 2 8 Power 5 | 2 . 3 Engine 5 | 2 . 3 Core . | . . . Reactor . | . . . Propulsion 3 | 2 . 1 Treads 2 | 2 . . Leg 1 | . . 1 Wheel . | . . . Hover . | . . . Flight . | . . . Utility 3 | 2 1 . Device 1 | 1 . . Storage 2 | 1 1 . Processor . | . . . Hackware . | . . . Protection . | . . . Artifact . | . . . Weapon 7 | 2 1 4 Energy Gun 1 | 1 . . Energy Cannon . | . . . Ballistic Gun 1 | 1 . . Ballistic Cannon 4 | . 1 3 Launcher . | . . . Special Weapon 1 | . . 1 Impact Weapon . | . . . Slashing Weapon . | . . . Piercing Weapon . | . . . Special Melee Weapon . | . . . Unidentified Prototypes . | . . . Parts Lost 9 | . 1 8 Power 4 | . 1 3 Propulsion 2 | . . 2 Utility . | . . . Weapon 3 | . . 3 Highest Loss Streak 5 | . 1 5 To Critical Strikes . | . . . Average Backups 11 | 3 7 13 Power 1 | . . 1 Propulsion 1 | 1 2 1 Utility 5 | . 2 6 Weapon 2 | 1 2 3 Tool/Special . | . . . Unused Backups 11 | . . 11 Power . | . . . Propulsion 2 | . . 2 Utility 7 | . . 7 Weapon 2 | . . 2 Tool/Special . | . . . Average Slot Usage (%) 99 | . 98 99 Engine 13 | . 13 13 Treads 20 | . 28 16 Leg 7 | . . 11 Device 13 | . 12 14 Storage 14 | . 14 14 Energy Gun 5 | . 14 1 Ballistic Gun 2 | . 7 . Ballistic Cannon 17 | . 6 23 Special Weapon 2 | . . 3 Peak Build Rating 10 | 7 8 10 Average Rating 8 | 5 7 9 On Entrance 5 | . 7 8 Avg Prop Armor Cover (%) 6 | . . 6 Naked Turns . | . . . Heaviest Build 32 | 13 31 32 Greatest Support 40 | 40 40 40 Greatest Overweight (x) 1 | . . 1 Average Overweight (x) . | . . . Largest Inventory Capacity 15 | 8 15 15 Average Capacity 12 | 7 9 15 Most Carried 15 | 6 12 15 Average Carried 11 | 4 7 14 Final Capacity 15 | 8 15 15 Final Carried 13 | 6 12 13 Class Distribution -------------------- 100% | Mutant Dominant Class ---------------- Mutant | -10/Materials Mutant | -10/Subcaves Resources | -11 -10 -10 ----------- Run | Yrd Mat Sub Matter Collected 1105 | 296 276 533 Remotely . | . . . Salvage Created 701 | 147 371 183 Parts 50 | 14 28 8 Haulers Intercepted . | . . . Recyclers Shooed 2 | 2 . . Parts Field Recycled . | . . . Retrieved Matter . | . . . Parts Self-Destructed 11 | . . 11 Prevented . | . . . Parts Restored . | . . . Kills | -11 -10 -10 ------- Run | Yrd Mat Sub Combat Hostiles Destroyed 22 | . 13 9 Guns 13 | . 13 . Cannons 9 | . . 9 Classes Destroyed 6 | 2 3 1 Tunneler 2 | 2 . . Recycler 1 | 1 . . Watcher 2 | . 2 . Swarmer 12 | . 9 3 Grunt 4 | . 4 . Subdweller 6 | . . 6 Best Kill Streak 6 | 2 6 3 Combat Bots Only 6 | . 6 3 Max Kills in Single Turn 2 | 1 2 1 Gunslinging 1 | . 1 . Exploded . | . . . Melee . | . . . Uniques/NPCs Destroyed . | . . . Combat | -11 -10 -10 -------- Run | Yrd Mat Sub Hostile Shots Fired 127 | . 57 70 Missed 29 | . 17 12 Hits 98 | . 40 58 Projectile 98 | . 40 58 Critical Strikes 1 | . . 1 Damage Taken 1395 | . 375 1020 Core 256 | . 86 170 Absorbed by Shields . | . . . Core Remaining (%) 100 | 100 . . Volleys Fired 93 | 6 34 53 Largest 2 | 2 2 2 Hottest 100 | 60 70 100 Shots Fired 161 | 12 68 81 Gun 71 | 12 59 . Cannon 65 | . 9 56 Launcher . | . . . Special 25 | . . 25 Kinetic 96 | 6 34 56 Thermal 25 | . . 25 Explosive . | . . . Electromagnetic 40 | 6 34 . Robot Hit Streak 16 | 3 9 16 Robot Miss Streak 5 | 2 5 5 Penetration Max . | . . . Secondary Targets 3 | . 3 . Max Gunslinging Chain 1 | . 1 . Shots Hit Robots 86 | 6 43 37 Core Hits 36 | 4 18 14 Critical Kills . | . . . Critical Parts Destroyed . | . . . Critical Strikes 3 | . . 3 Blast 3 | . . 3 Melee Attacks . | . . . Impact . | . . . Slashing . | . . . Piercing . | . . . Sneak Attacks . | . . . Combat Hostiles . | . . . Follow-up Attacks . | . . . Damage Inflicted 1308 | 68 507 733 Guns 499 | 68 431 . Cannons 808 | . 75 733 Explosions . | . . . Melee . | . . . Ramming 1 | . 1 . Kinetic 919 | 17 169 733 Thermal . | . . . Explosive . | . . . Electromagnetic 388 | 51 337 . Impact . | . . . Slashing . | . . . Piercing . | . . . Highest Corruption . | . . . Average Corruption . | . . . Corruption Purged . | . . . Corruption Blocked . | . . . Overload Shots . | . . . Overflow Damage . | . . . Projectiles . | . . . Explosions . | . . . Melee . | . . . Knockbacks 9 | . . 9 Impact . | . . . Kinetic 9 | . . 9 Secondary . | . . . Self-Inflicted Damage . | . . . Shots . | . . . Rammed 1 | . 1 . Targets Rammed 1 | . 1 . Kicked . | . . . Crushed . | . . . Highest Temperature 108 | 20 108 . Average Temperature 29 | 15 31 . Received Heat Transfer 222 | . 96 126 Siege Activations . | . . . Martial Activations . | . . . Shielding Activations . | . . . Robots Disrupted . | . . . Combat Hostiles . | . . . Robots Corrupted . | . . . Combat Hostiles . | . . . Parts Fried . | . . . Impact Corruptions . | . . . Robots Melted . | . . . Combat Hostiles . | . . . Parts Melted . | . . . Heat Transferred . | . . . Parts Sabotaged . | . . . Parts Stolen . | . . . Parts Stripped . | . . . Power Chain Reactions . | . . . Alert | -11 -10 -10 ------- Run | Yrd Mat Sub Maximum Alert Level 1 | . 1 . Low Security (%) 98 | 100 97 . Level 1 1 | . 2 . Level 2 . | . . . Level 3 . | . . . Level 4 . | . . . Level 5 . | . . . High Security . | . . . Max Security . | . . . Peak Influence 205 | 10 205 . Initial . | . . . Average 49 | 1 55 . Influence Increases 488 | 15 388 85 Destroy 0b10 Robot/C 320 | . 260 60 Destroy 0b10 Robot/NC 25 | 15 10 . Destroy Leader 54 | . 44 10 Successful Hack 59 | . 59 . Lose Combat Pursuer 30 | . 15 15 Influence Decreases 488 | 15 388 85 Time Decay 478 | 15 378 85 Lost Part 10 | . 10 . Squads Dispatched 2 | . 2 . Investigation 2 | . 2 . Extermination . | . . . Reinforcement . | . . . Assault . | . . . Garrison . | . . . Intercept . | . . . Searches Triggered . | . . . Construction Impeded . | . . . Haulers Reinforced . | . . . Active Scanning Responses . | . . . Cargo Convoy Interrupts . | . . . Stealth | -11 -10 -10 --------- Run | Yrd Mat Sub Distress Signals 1 | . 1 . Communications Jammed . | . . . Distress Signals . | . . . Times Spotted 30 | . 18 12 Peak Tracking Total 7 | . 7 4 Tactical Retreats 2 | . 1 1 Traps | -11 -10 -10 ------- Run | Yrd Mat Sub Traps Triggered 2 | . 2 . Indirectly . | . . . Trap Hack Attempts . | . . . Triggered . | . . . Disarmed . | . . . Reprogrammed . | . . . Reused . | . . . Traps Extracted . | . . . Installed . | . . . Triggered . | . . . Machines | -11 -10 -10 ---------- Run | Yrd Mat Sub Machines Disabled . | . . . Max in Single Turn . | . . . Machines Repaired . | . . . Machines Dismantled . | . . . Machines Sabotaged . | . . . Overloaded Fab Kills . | . . . Hacking | -11 -10 -10 --------- Run | Yrd Mat Sub Machines Accessed 8 | . 7 1 Terminals 5 | . 5 . Fabricators . | . . . Repair Stations . | . . . Recycling Units 2 | . 2 . Scanalyzers . | . . . Garrison Access . | . . . Total Hacks 29 | . 26 3 Successful 17 | . 14 3 Failed 12 | . 12 . Catastrophic 3 | . 3 . Database Lockouts . | . . . Manual 25 | . 25 . Terminals 18 | . 18 . Fabricators . | . . . Repair Stations . | . . . Recycling Units 8 | . 8 . Scanalyzers . | . . . Garrison Access . | . . . Terminal Hacks 7 | . 4 3 Record 3 | . . 3 Prototype ID Bank 1 | . 1 . Terminal Index 1 | . 1 . Recall Investigation 1 | . 1 . Registered Components 1 | . 1 . Fabricator Hacks . | . . . Repair Station Hacks . | . . . Recycling Unit Hacks . | . . . Scanalyzer . | . . . Garrison Access Hacks . | . . . Unauthorized Hacks 10 | . 10 . Terminals 7 | . 7 . Track 1 | . 1 . Assimilate 2 | . 2 . Botnet 2 | . 2 . Disrupt 1 | . 1 . Operators 1 | . 1 . Fabricators . | . . . Repair Stations . | . . . Recycling Units 3 | . 3 . Recyclers 1 | . 1 . Mask 2 | . 2 . Scanalyzers . | . . . Garrison Access . | . . . Data Cores Recovered . | . . . Used . | . . . Hacking Detections 7 | . 7 . Full Trace Events . | . . . Feedback Events . | . . . Feedback Blocked . | . . . Robot Schematics Acquired . | . . . Robots Built . | . . . Authchips . | . . . Time . | . . . Total Robot Build Rating . | . . . Part Schematics Acquired . | . . . Parts Built . | . . . Authchips . | . . . Time . | . . . Total Part Build Rating . | . . . Part Studies Acquired . | . . . Parts Repaired . | . . . Time . | . . . Parts Recycled . | . . . Recycled Matter . | . . . Retrieved Matter . | . . . Retrieved Components . | . . . Parts Scanalyzed . | . . . Part Schematics Acquired . | . . . Parts Damaged . | . . . Bothacking | -11 -10 -10 ------------ Run | Yrd Mat Sub Used RIF Installer . | . . . Robots Hacked . | . . . Non-combat . | . . . Combat . | . . . Robot Hacks Applied . | . . . Relay Couplers Released . | . . . Fabnet Peak Effective % . | . . . Robots Rewired . | . . . Allies Hacked . | . . . Hacks Repelled . | . . . Allies | -11 -10 -10 -------- Run | Yrd Mat Sub Total Allies 1 | . 1 . Largest Group 1 | . 1 1 Highest-Rated Group 10 | . 10 10 Highest-Rated Ally 10 | . 10 10 Total Orders . | . . . Ally Attacks . | . . . Total Damage . | . . . Kills . | . . . Allies Corrupted . | . . . Allies Melted . | . . . Intel | -11 -10 -10 ------- Run | Yrd Mat Sub Active Infowar (turns) 3318 | 55 1050 2213 Seismic 3318 | 55 1050 2213 Robot Analysis Total . | . . . Derelict Logs Recovered 1 | . . 1 Drone Launches . | . . . Drone Recoveries . | . . . Exploration | -11 -10 -10 ------------- Run | Yrd Mat Sub Turns Passed 3507 | 130 1164 2213 Spaces Moved 1518 | 55 582 881 Core 1 | 1 . . Treads 1517 | 54 582 881 Legs . | . . . Wheels . | . . . Hover . | . . . Flight . | . . . Fastest Speed 50 | 50 160 160 Average Speed 196 | 158 160 222 Slowest Speed 240 | 160 160 240 Overloaded Moves . | . . . Propulsion Burnouts . | . . . Robots Hopped . | . . . Potential Cave-ins . | . . . Cave-ins Triggered . | . . . Exploration Rate (%) 46 | 4 77 59 Regions Visited 2 Branch Regions 1 Pre-discovered Areas 2 | . . 2 Known Exits Taken . | . . . Unknown Exits Taken 2 | 1 1 . Scrap Searched 3 | . . 3 Spaces Dug . | . . . Terrain Destroyed 1 | . . 1 Melee . | . . . Projectile 1 | . . 1 AOE . | . . . Terrain Rammed . | . . . Walls Destroyed . | . . . Machines Disabled . | . . . Actions | -11 -10 -10 --------- Run | Yrd Mat Sub Total 1834 | 83 752 999 Wait 171 | 9 122 40 Move 1516 | 54 581 881 Hop . | . . . Pick Up 19 | 5 7 7 Fast Attach 8 | 7 1 . Attach 8 | . 2 6 Detach 1 | . 1 . Swap 13 | 2 1 10 Drop 4 | . 2 2 Fire 93 | 6 34 53 Melee . | . . . Ram . | . . . Kick . | . . . Crush 1 | . 1 . Escape Stasis . | . . . Rewire . | . . . Trap . | . . . Miscellaneous . | . . . Route ------- -11/Scrapyard -10/Materials (discovered 5 exits: [*Mat x3] / [*Min] / *Sub) -10/Subcaves (discovered 3 exits: [*Mat x2] / [*Scr]) History --------- Turn | Location | Event 14 | -11/Scrapyard | Discovered new exit (range 15) 131 | -11/Scrapyard | Entered Materials 266 | -10/Materials | Discovered new exit (range 11) 303 | -10/Materials | Build established: Mutant 801 | -10/Materials | Discovered new exit (range 10) 818 | -10/Materials | Discovered new exit (range 16) 1048 | -10/Materials | Discovered new exit (range 6) 1286 | -10/Materials | Discovered new exit (range 6) 1295 | -10/Materials | Entered Subcaves 1295 | -10/Subcaves | Accompanied by 1 ally 1296 | -10/Subcaves | Approached by a straggling Scientist 1442 | -10/Subcaves | Shifting Twisted Machinery released Sub. Power Source 1444 | -10/Subcaves | Shifting Twisted Machinery released Battle Cannon 1515 | -10/Subcaves | Shifting Twisted Machinery released Lgt. Humpback 1539 | -10/Subcaves | Shifting Twisted Machinery released Sub. Laser 1546 | -10/Subcaves | Discovered new exit (range 13) 1589 | -10/Subcaves | Discovered new exit (range 10) 1592 | -10/Subcaves | Shifting Twisted Machinery released Sub. Laser 1602 | -10/Subcaves | Shifting Twisted Machinery released Sub. Power Source 1616 | -10/Subcaves | Learned location of Zion (-7) 1616 | -10/Subcaves | Met a Zionite searching for "candidates" 1646 | -10/Subcaves | Core integrity fell below 50% 1814 | -10/Subcaves | A swath of the cavern ceiling suddenly collapsed 2129 | -10/Subcaves | Scientist uncovered a shortcut to Scraptown 2780 | -10/Subcaves | Visited Clippyterm 2787 | -10/Subcaves | Learned Factory fabricator intel 3228 | -10/Subcaves | A swath of the cavern ceiling suddenly collapsed 3387 | -10/Subcaves | Disturbed a concealed Subdweller 3501 | -10/Subcaves | Core integrity fell below 20% 3508 | -10/Subcaves | Destroyed by E1-VYT(R) with Subdweller Machine Gun Last Messages --------------- 03417_ Subatomizers dissect the Battle Cannon. 03417_ Searching scrap... 03417_ Found Battle Cannon. 03417_ Found 63 Matter. 03418_ Acquired 63 matter. 03422_ Acquired Battle Cannon. 03432_ Subatomizers dissect the Disposable Heat Sink. 03485_ PW-8GV(R) knocked back. 03488_ Lgt. Treads destroyed. 03492_ Lgt. Cannon destroyed. 03493_ Battle Cannon destroyed. 03496_ MS-OEB(R) knocked back. 03499_ PW-8GV(R) destroyed. 03502_ PY-X2P(R) affixes Scrap Shield Fragment to Scrap Shield. 03502_ PY-X2P(R) Sub. Optics blasted off. 03502_ PY-X2P(R) destroyed. 03502_ Lgt. Ion Engine destroyed. 03506_ Battle Cannon destroyed. Map ----- +----------------------------------------------------+ | ?????????????????????????????????????????????????? | | ?????????????????????????????????????????????????? | | ?????????????????????????????????????????????????? | | ?????????????????????????????????????????????????? | | ?????????????????????????????????????????????????? | | ?????????????????????????????????????????????????? | | ?????????????????????????????????????????????????? | | ?????????????????????????????????????????????????? | | ?????????????????????????????????????????????????? | | ?????????????????????????????#???????????????????? | | ???????????????????????????? ##??????????????????? | | ???????????????????????????? ##?????????????????? | | ????????????????????????" "?????????????????? | | ????????????????????????""" "?????????????????? | | ??????????????????"?????#""" ??????????????????? | | ??????????????????" ????# " ??????????????????? | | ??????????????????" #??## ???????????????????? | | ??????????????????? ### ???????????????????? | | ???????????????????? " ????????????????????? | | ????????????????????? " ????????????????????? | | ??????????????????????# #????????????????????? | | ???????????????????????# #????????????????????? | | ???????????????????????? ##???????????????????? | | ?????????????????????????# %R#???????????????????? | | ????????????????????????## !%###?????????????????? | | ???????????????????????##@ % %;#?????????????????? | | ??????????????????????## %R%###?????????????????? | | ?????????????????????## ##??????????????????? | | ?????????????????????# #??????????????????? | | ?????????????????????#### # ##??###?????????????? | | ???????????????????????## ##??## ##???????????? | | ???????????????????????# ##???# ##??????????? | | ???????????????????????## #### ###????????? | | ???????????????????????## # # ##???????? | | ?????????????????####?## " #####???? | | ?????????????????# ### # "" #???? | | ?????????????????# !#&#" # # " #???? | | ?????????????????##& ]= #### ##????#"""" ###?# | | ?????????????????# & ##" #?## #???## " """### | | ?????????????????#% ## ###" ##?##" "#"##""" | | ?????????????????######## """ ###""" " #"#"## | | ????????????????????????# """" """"" ####? | | ????????????????????????## ### """" ####???? | | ?????????????????????????####?####### #####??????? | | ????????????????????????????????????###??????????? | | ?????????????????????????????????????????????????? | | ?????????????????????????????????????????????????? | | ?????????????????????????????????????????????????? | | ?????????????????????????????????????????????????? | | ?????????????????????????????????????????????????? | +----------------------------------------------------+ Best States ------------- Heat Dissipation 25 Energy Generation 15 Energy Capacity 250 Matter Stores 300 Matter Capacity 300 Sight Range 16 Terrain Scan Density 10 Evasion (%) 40 Recoil Reduction 2 Item Schematics ----------------- None Robot Schematics ------------------ None Fabricated ------------ Nothing Repaired ---------- Nothing Studied --------- None Alien Tech Used ----------------- None Achievements -------------- None Challenges ------------ None Game ------ Seed BackupShieldExoskeleton Manual? 0 Play Time 00:18:40 Cumulative 135.1 hours Start 2026.02.20 @ 17:04:09 End 2026.02.20 @ 17:24:44 Sessions 1 Manual Loads 0 Difficulty Rogue Special Mode None Game No. 149 Rogue 149 Adventurer 0 Explorer 0 Win Type - Total 4 Types 4/0/0/0/0/0/0/0/0/0 Lore% 69 Gallery% 53 Achievement% 42 Wizard Run 0 Options --------- Layout 1 ASCII 0 Keyboard 1 Movement Vi Keybinds 0 Fullscreen 2 Font 24/Terminus Map View 50x35 Zoom Use 0% Tactical HUD 1 Map Filters NONE Filters NONE Steam 1 RUN: 1261eecc-a469-4d71-86fa-11ed8f1c3c81